{"text_format":"1","workbook":"xlsx","n_sheets":5,"sheets":["Présentation","Grille de compétences","Soutenance de projet","Dialogue argumenté","Livret scolaire"],"not_rendered":{"charts":0,"images":2,"macros":1,"external_links":0,"defined_names":5,"comments":0,"pivot_tables":0},"unopened":[],"bounds":{"document_bytes":16777216,"sheet_cells":100000,"rows_first":2000,"rows_last":500,"rows_between":2000,"halvings":0,"cell_chars":16384,"cell_head_chars":4096},"cells_cut":0,"cells_raw":0,"read":"whole","date_system":"1900"}

{"sheet":"Présentation","index":0,"n_rows":46,"n_cols":13,"rows_kept":46,"cut":false,"hidden":false,"merged":[[40,1,40,3],[41,1,41,3],[44,1,44,3],[45,1,45,3],[43,1,43,3],[34,1,34,3],[35,1,35,3],[36,1,36,3],[37,1,37,3],[39,1,39,3],[29,1,29,3],[30,1,30,3],[31,1,31,3],[32,1,32,3],[33,1,33,3],[13,10,13,12],[2,7,2,12],[9,6,26,7],[5,6,5,7],[6,6,6,7],[5,9,5,12],[6,9,6,12],[7,9,7,12],[8,9,8,12],[5,1,6,4],[9,1,26,4],[43,7,45,7],[43,6,45,6]]}
[]
[null,null,null,null,null,null,null,"Etablissement :"]
[]
[]
[null,"Intitulé du projet :",null,null,null,null,"Référent :",null,null,"Equipe :"]
[]
[]
[]
[null,"Problématique :",null,null,null,null,"Illustration :"]
[]
[null,null,null,null,null,null,null,null,null,"Evaluation :"]
[]
[null,null,null,null,null,null,null,null,null,null,"Candidat :"]
[]
[]
[null,null,null,null,null,null,null,null,null,null,"Soutenance de projet :"]
[null,null,null,null,null,null,null,null,null,null,{"$f":"'Soutenance de projet'!I26","v":0},"sur",8]
[]
[null,null,null,null,null,null,null,null,null,null,"Dialogue argumenté :"]
[null,null,null,null,null,null,null,null,null,null,{"$f":"'Dialogue argumenté'!I29","v":0},"sur",12]
[]
[null,null,null,null,null,null,null,null,null,null,"Note finale :"]
[null,null,null,null,null,null,null,null,null,null,{"$f":"SUM(K17,K20)","v":0}]
[]
[]
[]
[]
[]
[null,"Savoirs mobilisés (mettre un \"x\") :"]
[null,"Représentation de l'information",null,null,"Mobilisé",null,"Langages et programmation","Mobilisé"]
[null,"Représentation binaire",null,null,null,null,"Types de données"]
[null,"Opérations booléennes",null,null,null,null,"Fonctions"]
[null,"Numérisation",null,null,null,null,"Correction d'un programme"]
[null,"Formats",null,null,null,null,"Langages de description"]
[null,"Compression"]
[null,"Structuration et organisation de l'information"]
[null,"Persistance de l'information",null,null,null,null,"Réseaux","Mobilisé"]
[null,"Non-rivalité de l'information",null,null,null,null,"Transmission point à point"]
[null,null,null,null,null,null,"Adressage sur un réseau"]
[null,"Algorithmique",null,null,"Mobilisé",null,"Routage"]
[null,"Algorithmes simples",null,null,null,null,"Supranationalité des réseaux"]
[null,"Algorithmes plus avancés"]
[null,null,null,null,null,null,"Initiation à la robotique","Mobilisé"]
[null,"Architecture ",null,null,"Mobilisé",null,"Découverte d'un système robotique et de sa programmation"]
[null,"Éléments d'architecture"]
[null,"Jeu d'instructions"]

{"sheet":"Grille de compétences","index":1,"n_rows":27,"n_cols":7,"rows_kept":27,"cut":false,"hidden":false,"merged":[[0,0,26,0],[0,2,0,3],[0,5,0,6],[1,3,2,3],[5,3,7,3],[11,3,13,3],[17,3,18,3],[23,3,25,3]]}
["Compétences ISN\nPédagogie et suivi de l'élève",0,"Compétences",null,null,"Capacités et exemples d’observables possibles"]
[null,{"$f":"IF(D2=\"\",B1,B1+1)","v":1},{"$f":"IF(D2=\"\",\"\",\"C\"&B2)","v":"C1"},"Décrire et expliquer une situation, un système ou un programme",{"$f":"IF(D2=\"\",E1+0.5,1)","v":1},{"$f":"IF(G2=\"\",\"\",\"C\"&B2&\".\"&E2)","v":"C1.1"},"Justifier"]
[null,{"$f":"IF(D3=\"\",B2,B2+1)","v":1},{"$f":"IF(D3=\"\",\"\",\"C\"&B3)","v":""},null,1.5,null,"dans une situation donnée, un codage numérique ou l'usage d'un format approprié, qu'un programme réalise l'action attendue…"]
[null,{"$f":"IF(D4=\"\",B3,B3+1)","v":1},{"$f":"IF(D4=\"\",\"\",\"C\"&B4)","v":""},null,2,{"$f":"IF(G4=\"\",\"\",\"C\"&B4&\".\"&E4)","v":"C1.2"},"Détailler"]
[null,{"$f":"IF(D5=\"\",B4,B4+1)","v":1},{"$f":"IF(D5=\"\",\"\",\"C\"&B5)","v":""},null,2.5,null,"le déroulement d'une communication numérique, le rôle des constituants d'un système numérique, le rôle des éléments constitutifs d'une page web, ce qu'effectue tout ou partie d'un programme ou de l'algorithme associé, l'enchaînement des événements qui réalisent la fonction attendue par un programme…"]
[null,{"$f":"IF(D6=\"\",B5,B5+1)","v":2},{"$f":"IF(D6=\"\",\"\",\"C\"&B6)","v":"C2"},"Concevoir et réaliser une solution informatique en réponse à un problème",1,{"$f":"\"C\"&B6&\".\"&E6","v":"C2.1"},"Analyser"]
[null,null,null,null,1.5,null,"un besoin dans un système d'information, le fonctionnement d'un algorithme … "]
[null,{"$f":"IF(D8=\"\",B6,B6+1)","v":2},{"$f":"IF(D8=\"\",\"\",\"C\"&B8)","v":""},null,2,{"$f":"\"C\"&B8&\".\"&E8","v":"C2.2"},"Structurer"]
[null,{"$f":"IF(D9=\"\",B8,B8+1)","v":2},{"$f":"IF(D9=\"\",\"\",\"C\"&B9)","v":""},null,2.5,null,"une formule logique, des données, une arborescence, une page web, une approche fonctionnelle en réponse à un besoin…"]
[null,{"$f":"IF(D10=\"\",B9,B9+1)","v":2},{"$f":"IF(D10=\"\",\"\",\"C\"&B10)","v":""},null,3,{"$f":"\"C\"&B10&\".\"&E10","v":"C2.3"},"Développer"]
[null,{"$f":"IF(D11=\"\",B10,B10+1)","v":2},{"$f":"IF(D11=\"\",\"\",\"C\"&B11)","v":""},null,3.5,null,"une interface logicielle ou une interface homme-machine, un algorithme, un programme,\nun document ou fichier numérique…"]
[null,{"$f":"IF(D12=\"\",B11,B11+1)","v":3},{"$f":"IF(D12=\"\",\"\",\"C\"&B12)","v":"C3"},"Collaborer efficacement au sein d’une équipe dans le cadre d’un projet",1,{"$f":"\"C\"&B12&\".\"&E12","v":"C3.1"},"Agir au sein d'une équipe"]
[null,null,null,null,1.5,null,"dans des rôles bien définis, en interaction avec le professeur."]
[null,{"$f":"IF(D14=\"\",B12,B12+1)","v":3},{"$f":"IF(D14=\"\",\"\",\"C\"&B14)","v":""},null,2,{"$f":"\"C\"&B14&\".\"&E14","v":"C3.2"},"Rechercher et partager"]
[null,null,null,null,2.5,null,"une information, une documentation, une explication."]
[null,{"$f":"IF(D16=\"\",B14,B14+1)","v":3},{"$f":"IF(D16=\"\",\"\",\"C\"&B16)","v":""},null,3,{"$f":"\"C\"&B16&\".\"&E16","v":"C3.3"},"Maîtriser l'utilisation d'outils numériques collaboratifs"]
[null,null,null,null,3.5,null,"du type ENT, système de gestion de contenu (CMS), groupe de travail, forums…"]
[null,{"$f":"IF(D18=\"\",B16,B16+1)","v":4},{"$f":"IF(D18=\"\",\"\",\"C\"&B18)","v":"C4"},"Communiquer à l'écrit et à l'oral",1,{"$f":"\"C\"&B18&\".\"&E18","v":"C4.1"},"Documenter un projet numérique"]
[null,null,null,null,1.5,null,"pour en permettre la communication en cours de réalisation et à l'achèvement, tout en précisant le déroulement et la finalité du projet."]
[null,{"$f":"IF(D20=\"\",B18,B18+1)","v":4},{"$f":"IF(D20=\"\",\"\",\"C\"&B20)","v":""},null,2,{"$f":"\"C\"&B20&\".\"&E20","v":"C4.2"},"Présenter"]
[null,null,null,null,2.5,null,"le cahier des charges relatif à un projet ou un mini-projet, la répartition des tâches au sein de l'équipe, les phases successives mises en œuvre, le déroulement de l'ensemble des opérations…"]
[null,{"$f":"IF(D22=\"\",B20,B20+1)","v":4},{"$f":"IF(D22=\"\",\"\",\"C\"&B22)","v":""},null,3,{"$f":"\"C\"&B22&\".\"&E22","v":"C4.3"},"Argumenter"]
[null,null,null,null,3.5,null,"les choix relatifs à une solution (choix d'un format, d'un algorithme, d'une interface…)."]
[null,{"$f":"IF(D24=\"\",B22,B22+1)","v":5},{"$f":"IF(D24=\"\",\"\",\"C\"&B24)","v":"C5"},"Faire un usage responsable des sciences du numérique en ayant conscience des problèmes sociétaux induits",1,{"$f":"\"C\"&B24&\".\"&E24","v":"C5.1"},"Avoir conscience de l'impact du numérique dans la société"]
[null,null,null,null,1.5,null,"notamment de la persistance de l'information numérique, de la non-rivalité des biens immatériels, du caractère supranational des réseaux, de l'importance des licences et du droit."]
[null,{"$f":"IF(D26=\"\",B24,B24+1)","v":5},{"$f":"IF(D26=\"\",\"\",\"C\"&B26)","v":""},null,2,{"$f":"\"C\"&B26&\".\"&E26","v":"C5.2"},"Mesurer les limites et les conséquences"]
[null,{"$f":"IF(D27=\"\",B26,B26+1)","v":5},{"$f":"IF(D27=\"\",\"\",\"C\"&B27)","v":""},null,2.5,null,"de la persistance de l'information numérique, des lois régissant les échanges numériques, du caractère supranational des réseaux."]

{"sheet":"Soutenance de projet","index":2,"n_rows":26,"n_cols":9,"rows_kept":26,"cut":false,"hidden":false,"merged":[[22,8,24,8],[4,8,7,8],[8,8,13,8],[14,8,17,8],[18,8,21,8],[1,1,1,4],[14,4,16,4],[18,4,19,4],[22,4,23,4],[22,6,24,7],[3,1,24,1],[3,3,3,4],[3,6,3,7],[4,4,6,4],[8,4,11,4]]}
[null,"Candidat :",null,null,null,null,null,"Epreuve d'Informatique et Sciences du Numérique"]
[null,{"$f":"Présentation!K14","v":0},null,null,null,null,null,"Session 2013"]
[]
[null,"Compétences ISN évaluées\nlors de la soutenance du projet",{"$f":"'Grille de compétences'!$B$1","v":0},{"$f":"'Grille de compétences'!$C$1","v":"Compétences"},null,null,{"$f":"'Grille de compétences'!$F$1","v":"Capacités et exemples d’observables possibles"},null,"Note"]
[null,null,{"$f":"'Grille de compétences'!$B$2","v":1},{"$f":"'Grille de compétences'!$C$2","v":"C1"},{"$f":"'Grille de compétences'!$D$2","v":"Décrire et expliquer une situation, un système ou un programme"},{"$f":"'Grille de compétences'!$E$2","v":1}]
[null,null,{"$f":"'Grille de compétences'!$B$3","v":1},{"$f":"'Grille de compétences'!$C$3","v":""},null,{"$f":"'Grille de compétences'!$E$3","v":1.5}]
[null,null,{"$f":"'Grille de compétences'!$B$4","v":1},{"$f":"'Grille de compétences'!$C$4","v":""},null,{"$f":"'Grille de compétences'!$E$4","v":2},{"$f":"'Grille de compétences'!$F$4","v":"C1.2"},{"$f":"'Grille de compétences'!$G$4","v":"Détailler"}]
[null,null,{"$f":"'Grille de compétences'!$B$5","v":1},{"$f":"'Grille de compétences'!$C$5","v":""},"Notée sur 1 point",{"$f":"'Grille de compétences'!$E$5","v":2.5},null,{"$f":"'Grille de compétences'!$G$5","v":"le déroulement d'une communication numérique, le rôle des constituants d'un système numérique, le rôle des éléments constitutifs d'une page web, ce qu'effectue tout ou partie d'un programme ou de l'algorithme associé, l'enchaînement des événements qui réalisent la fonction attendue par un programme…"}]
[null,null,{"$f":"'Grille de compétences'!$B$6","v":2},{"$f":"'Grille de compétences'!$C$6","v":"C2"},{"$f":"'Grille de compétences'!$D$6","v":"Concevoir et réaliser une solution informatique en réponse à un problème"},{"$f":"'Grille de compétences'!$E$6","v":1},{"$f":"'Grille de compétences'!$F$6","v":"C2.1"},{"$f":"'Grille de compétences'!$G$6","v":"Analyser"}]
[null,null,null,null,null,{"$f":"'Grille de compétences'!$E$7","v":1.5},null,{"$f":"'Grille de compétences'!$G$7","v":"un besoin dans un système d'information, le fonctionnement d'un algorithme … "}]
[null,null,{"$f":"'Grille de compétences'!$B$8","v":2},{"$f":"'Grille de compétences'!$C$8","v":""},null,{"$f":"'Grille de compétences'!$E$8","v":2},{"$f":"'Grille de compétences'!$F$8","v":"C2.2"},{"$f":"'Grille de compétences'!$G$8","v":"Structurer"}]
[null,null,{"$f":"'Grille de compétences'!$B$9","v":2},{"$f":"'Grille de compétences'!$C$9","v":""},null,{"$f":"'Grille de compétences'!$E$9","v":2.5},null,{"$f":"'Grille de compétences'!$G$9","v":"une formule logique, des données, une arborescence, une page web, une approche fonctionnelle en réponse à un besoin…"}]
[null,null,{"$f":"'Grille de compétences'!$B$10","v":2},{"$f":"'Grille de compétences'!$C$10","v":""},null,{"$f":"'Grille de compétences'!$E$10","v":3},{"$f":"'Grille de compétences'!$F$10","v":"C2.3"},{"$f":"'Grille de compétences'!$G$10","v":"Développer"}]
[null,null,{"$f":"'Grille de compétences'!$B$11","v":2},{"$f":"'Grille de compétences'!$C$11","v":""},"Notée sur 2 points",{"$f":"'Grille de compétences'!$E$11","v":3.5},null,{"$f":"'Grille de compétences'!$G$11","v":"une interface logicielle ou une interface homme-machine, un algorithme, un programme,\nun document ou fichier numérique…"}]
[null,null,null,{"$f":"'Grille de compétences'!$C$12","v":"C3"},{"$f":"'Grille de compétences'!$D$12","v":"Collaborer efficacement au sein d’une équipe dans le cadre d’un projet"},null,{"$f":"'Grille de compétences'!$F$12","v":"C3.1"},{"$f":"'Grille de compétences'!$G$12","v":"Agir au sein d'une équipe"}]
[null,null,null,null,null,null,null,{"$f":"'Grille de compétences'!$G$13","v":"dans des rôles bien définis, en interaction avec le professeur."}]
[null,null,{"$f":"'Grille de compétences'!$B$12","v":3},null,null,{"$f":"'Grille de compétences'!$E$12","v":1}]
[null,null,null,null,"Notée sur 1 point",{"$f":"'Grille de compétences'!$E$13","v":1.5}]
[null,null,{"$f":"'Grille de compétences'!$B$14","v":3},{"$f":"'Grille de compétences'!$C$18","v":"C4"},{"$f":"'Grille de compétences'!$D$18","v":"Communiquer à l'écrit et à l'oral"},{"$f":"'Grille de compétences'!$E$14","v":2},{"$f":"'Grille de compétences'!$F$18","v":"C4.1"},{"$f":"'Grille de compétences'!$G$18","v":"Documenter un projet numérique"}]
[null,null,null,null,null,{"$f":"'Grille de compétences'!$E$15","v":2.5},null,{"$f":"'Grille de compétences'!$G$19","v":"pour en permettre la communication en cours de réalisation et à l'achèvement, tout en précisant le déroulement et la finalité du projet."}]
[null,null,{"$f":"'Grille de compétences'!$B$16","v":3},{"$f":"'Grille de compétences'!$C$16","v":""},null,{"$f":"'Grille de compétences'!$E$16","v":3},{"$f":"'Grille de compétences'!$F$20","v":"C4.2"},{"$f":"'Grille de compétences'!$G$20","v":"Présenter"}]
[null,null,null,null,"Notée sur 2 points",{"$f":"'Grille de compétences'!$E$17","v":3.5},null,{"$f":"'Grille de compétences'!$G$21","v":"le cahier des charges relatif à un projet ou un mini-projet, la répartition des tâches au sein de l'équipe, les phases successives mises en œuvre, le déroulement de l'ensemble des opérations…"}]
[null,null,{"$f":"'Grille de compétences'!$B$18","v":4},null,"Globalisation",{"$f":"'Grille de compétences'!$E$18","v":1},"Évaluation des éléments saillants apparus lors de la présentation : originalité des démarches, engagement, questionnements éthiques, etc."]
[null,null,null,null,null,{"$f":"'Grille de compétences'!$E$19","v":1.5}]
[null,null,null,null,"Notée sur 2 points",{"$f":"'Grille de compétences'!$E$23","v":3.5}]
[null,null,null,null,null,null,null,"TOTAL :",{"$f":"SUM(I5:I23)","v":0}]

{"sheet":"Dialogue argumenté","index":3,"n_rows":29,"n_cols":9,"rows_kept":29,"cut":false,"hidden":false,"merged":[[1,1,1,4],[4,8,7,8],[8,8,13,8],[14,8,19,8],[20,8,25,8],[24,4,25,4],[4,4,6,4],[8,4,11,4],[12,4,13,4],[14,4,17,4],[18,4,19,4],[20,4,23,4],[26,8,27,8],[26,6,27,7],[3,1,27,1],[3,3,3,4],[3,6,3,7]]}
[null,"Candidat :",null,null,null,null,null,"Epreuve d'Informatique et Sciences du Numérique"]
[null,{"$f":"Présentation!K14","v":0},null,null,null,null,null,"Session 2013"]
[]
[null,"Compétences ISN évaluées\nlors du dialogue avec la commission",{"$f":"'Grille de compétences'!$B$1","v":0},{"$f":"'Grille de compétences'!$C$1","v":"Compétences"},null,null,{"$f":"'Grille de compétences'!$F$1","v":"Capacités et exemples d’observables possibles"},null,"Note"]
[null,null,{"$f":"'Grille de compétences'!$B$2","v":1},{"$f":"'Grille de compétences'!$C$2","v":"C1"},{"$f":"'Grille de compétences'!$D$2","v":"Décrire et expliquer une situation, un système ou un programme"},{"$f":"'Grille de compétences'!$E$2","v":1},{"$f":"'Grille de compétences'!$F$2","v":"C1.1"},{"$f":"'Grille de compétences'!$G$2","v":"Justifier"}]
[null,null,{"$f":"'Grille de compétences'!$B$3","v":1},{"$f":"'Grille de compétences'!$C$3","v":""},null,{"$f":"'Grille de compétences'!$E$3","v":1.5},null,{"$f":"'Grille de compétences'!$G$3","v":"dans une situation donnée, un codage numérique ou l'usage d'un format approprié, qu'un programme réalise l'action attendue…"}]
[null,null,{"$f":"'Grille de compétences'!$B$4","v":1},{"$f":"'Grille de compétences'!$C$4","v":""},null,{"$f":"'Grille de compétences'!$E$4","v":2},{"$f":"'Grille de compétences'!$F$4","v":"C1.2"},{"$f":"'Grille de compétences'!$G$4","v":"Détailler"}]
[null,null,{"$f":"'Grille de compétences'!$B$5","v":1},{"$f":"'Grille de compétences'!$C$5","v":""},"Notée sur 2 points",{"$f":"'Grille de compétences'!$E$5","v":2.5},null,{"$f":"'Grille de compétences'!$G$5","v":"le déroulement d'une communication numérique, le rôle des constituants d'un système numérique, le rôle des éléments constitutifs d'une page web, ce qu'effectue tout ou partie d'un programme ou de l'algorithme associé, l'enchaînement des événements qui réalisent la fonction attendue par un programme…"}]
[null,null,{"$f":"'Grille de compétences'!$B$6","v":2},{"$f":"'Grille de compétences'!$C$6","v":"C2"},{"$f":"'Grille de compétences'!$D$6","v":"Concevoir et réaliser une solution informatique en réponse à un problème"},{"$f":"'Grille de compétences'!$E$6","v":1},{"$f":"'Grille de compétences'!$F$6","v":"C2.1"},{"$f":"'Grille de compétences'!$G$6","v":"Analyser"}]
[null,null,null,null,null,{"$f":"'Grille de compétences'!$E$7","v":1.5},null,{"$f":"'Grille de compétences'!$G$7","v":"un besoin dans un système d'information, le fonctionnement d'un algorithme … "}]
[null,null,{"$f":"'Grille de compétences'!$B$8","v":2},{"$f":"'Grille de compétences'!$C$8","v":""},null,{"$f":"'Grille de compétences'!$E$8","v":2},{"$f":"'Grille de compétences'!$F$8","v":"C2.2"},{"$f":"'Grille de compétences'!$G$8","v":"Structurer"}]
[null,null,{"$f":"'Grille de compétences'!$B$9","v":2},{"$f":"'Grille de compétences'!$C$9","v":""},null,{"$f":"'Grille de compétences'!$E$9","v":2.5},null,{"$f":"'Grille de compétences'!$G$9","v":"une formule logique, des données, une arborescence, une page web, une approche fonctionnelle en réponse à un besoin…"}]
[null,null,{"$f":"'Grille de compétences'!$B$10","v":2},{"$f":"'Grille de compétences'!$C$10","v":""},"Notée sur 3 points",{"$f":"'Grille de compétences'!$E$10","v":3},{"$f":"'Grille de compétences'!$F$10","v":"C2.3"},{"$f":"'Grille de compétences'!$G$10","v":"Développer"}]
[null,null,{"$f":"'Grille de compétences'!$B$11","v":2},{"$f":"'Grille de compétences'!$C$11","v":""},null,{"$f":"'Grille de compétences'!$E$11","v":3.5},null,{"$f":"'Grille de compétences'!$G$11","v":"une interface logicielle ou une interface homme-machine, un algorithme, un programme,\nun document ou fichier numérique…"}]
[null,null,{"$f":"'Grille de compétences'!$B$12","v":3},{"$f":"'Grille de compétences'!$C$12","v":"C3"},{"$f":"'Grille de compétences'!$D$12","v":"Collaborer efficacement au sein d’une équipe dans le cadre d’un projet"},{"$f":"'Grille de compétences'!$E$12","v":1},{"$f":"'Grille de compétences'!$F$12","v":"C3.1"},{"$f":"'Grille de compétences'!$G$12","v":"Agir au sein d'une équipe"}]
[null,null,null,null,null,{"$f":"'Grille de compétences'!$E$13","v":1.5},null,{"$f":"'Grille de compétences'!$G$13","v":"dans des rôles bien définis, en interaction avec le professeur."}]
[null,null,{"$f":"'Grille de compétences'!$B$14","v":3},{"$f":"'Grille de compétences'!$C$14","v":""},null,{"$f":"'Grille de compétences'!$E$14","v":2}]
[null,null,null,null,null,{"$f":"'Grille de compétences'!$E$15","v":2.5}]
[null,null,{"$f":"'Grille de compétences'!$B$16","v":3},{"$f":"'Grille de compétences'!$C$16","v":""},"Notée sur 2 points",{"$f":"'Grille de compétences'!$E$16","v":3},{"$f":"'Grille de compétences'!$F$16","v":"C3.3"},{"$f":"'Grille de compétences'!$G$16","v":"Maîtriser l'utilisation d'outils numériques collaboratifs"}]
[null,null,null,null,null,{"$f":"'Grille de compétences'!$E$17","v":3.5},null,{"$f":"'Grille de compétences'!$G$17","v":"du type ENT, système de gestion de contenu (CMS), groupe de travail, forums…"}]
[null,null,{"$f":"'Grille de compétences'!$B$18","v":4},{"$f":"'Grille de compétences'!$C$18","v":"C4"},{"$f":"'Grille de compétences'!$D$18","v":"Communiquer à l'écrit et à l'oral"},{"$f":"'Grille de compétences'!$E$18","v":1}]
[null,null,null,null,null,{"$f":"'Grille de compétences'!$E$19","v":1.5}]
[null,null,{"$f":"'Grille de compétences'!$B$20","v":4},{"$f":"'Grille de compétences'!$C$20","v":""},null,{"$f":"'Grille de compétences'!$E$20","v":2},{"$f":"'Grille de compétences'!$F$20","v":"C4.2"},{"$f":"'Grille de compétences'!$G$20","v":"Présenter"}]
[null,null,null,null,null,{"$f":"'Grille de compétences'!$E$21","v":2.5},null,{"$f":"'Grille de compétences'!$G$21","v":"le cahier des charges relatif à un projet ou un mini-projet, la répartition des tâches au sein de l'équipe, les phases successives mises en œuvre, le déroulement de l'ensemble des opérations…"}]
[null,null,{"$f":"'Grille de compétences'!$B$22","v":4},{"$f":"'Grille de compétences'!$C$22","v":""},"Notée sur 2 points",{"$f":"'Grille de compétences'!$E$22","v":3},{"$f":"'Grille de compétences'!$F$22","v":"C4.3"},{"$f":"'Grille de compétences'!$G$22","v":"Argumenter"}]
[null,null,null,null,null,{"$f":"'Grille de compétences'!$E$23","v":3.5},null,{"$f":"'Grille de compétences'!$G$23","v":"les choix relatifs à une solution (choix d'un format, d'un algorithme, d'une interface…)."}]
[null,null,null,null,"Globalisation",null,"Évaluation des éléments saillants apparus lors du dialogue : culture, réactivité, questionnements éthiques, etc."]
[null,null,null,null,"Notée sur 3 points"]
[null,null,null,null,null,null,null,"TOTAL :",{"$f":"SUM(I5:I28)","v":0}]

{"sheet":"Livret scolaire","index":4,"n_rows":14,"n_cols":9,"rows_kept":14,"cut":false,"hidden":false,"merged":[[1,1,1,3],[4,6,5,6],[6,6,7,6],[8,6,9,6],[10,6,11,6],[6,4,7,4],[6,5,7,5],[8,4,9,4],[8,5,9,5],[10,4,11,4],[10,5,11,5],[12,6,13,6],[3,1,13,1],[3,3,3,4],[4,4,5,4],[4,5,5,5],[12,4,13,4],[12,5,13,5]]}
[null,"Candidat :",null,null,null,"Epreuve d'Informatique et Sciences du Numérique"]
[null,{"$f":"Présentation!K14","v":0},null,null,null,"Session 21013",null,null,1]
[null,null,null,null,null,null,null,null,2]
[null,"Compétences ISN évaluées\ndans le livret scolaire",{"$f":"'Grille de compétences'!$B$1","v":0},"Compétences évaluées",null,"Approfondissement","Niveau",null,3]
[null,null,{"$f":"'Grille de compétences'!$B$2","v":1},{"$f":"'Grille de compétences'!$C$2","v":"C1"},{"$f":"'Grille de compétences'!$D$2","v":"Décrire et expliquer une situation, un système ou un programme"},"Niveau :\nde 1 à 5",null,null,4]
[null,null,{"$f":"'Grille de compétences'!$B$3","v":1},{"$f":"'Grille de compétences'!$C$3","v":""},null,null,null,null,5]
[null,null,{"$f":"'Grille de compétences'!$B$6","v":2},{"$f":"'Grille de compétences'!$C$6","v":"C2"},{"$f":"'Grille de compétences'!$D$6","v":"Concevoir et réaliser une solution informatique en réponse à un problème"},{"$f":"F5","v":"Niveau :\nde 1 à 5"}]
[]
[null,null,{"$f":"'Grille de compétences'!$B$12","v":3},{"$f":"'Grille de compétences'!$C$12","v":"C3"},{"$f":"'Grille de compétences'!$D$12","v":"Collaborer efficacement au sein d’une équipe dans le cadre d’un projet"},{"$f":"F7","v":"Niveau :\nde 1 à 5"}]
[null,null,null,null,null,{"$f":"F8","v":0}]
[null,null,{"$f":"'Grille de compétences'!$B$18","v":4},{"$f":"'Grille de compétences'!$C$18","v":"C4"},{"$f":"'Grille de compétences'!$D$18","v":"Communiquer à l'écrit et à l'oral"},{"$f":"F9","v":"Niveau :\nde 1 à 5"}]
[]
[null,null,null,{"$f":"'Grille de compétences'!$C$24","v":"C5"},{"$f":"'Grille de compétences'!$D$24","v":"Faire un usage responsable des sciences du numérique en ayant conscience des problèmes sociétaux induits"},{"$f":"F11","v":"Niveau :\nde 1 à 5"}]
[null,null,{"$f":"'Grille de compétences'!$B$24","v":5}]